Cogmind - Beta 14 @@@ ROGUE MODE // 2025.03.14 @ 18:56:45 Player: GiggleBox Result: Destroyed by as-27937 with Assembled Maul Performance ------------- Evolutions (0) 0 Regions Visited (2) 400 Robots Destroyed (7) 35 Value Destroyed (50) 50 Prototype IDs (0) 0 Alien Tech Used (0) 0 Bonus (0) 0 TOTAL SCORE: 485 Bonus ------- None Cogmind --------- Core Integrity 0/250 Matter 223/300 Energy 40/250 System Corruption 8% Temperature Cool (0) Movement Treading (160) Location -10/Mines Parts ------- > --- POWER (1) -------- Ion Engine > --- PROPULSION (2) --- Light Treads Light Treads > --- UTILITY (2) ------ Medium Storage Unit Transport Network Coupler > --- WEAPON (2) ------- Medium Laser Assault Rifle > --- INVENTORY (10) --- Light Ion Engine Small Storage Unit Seismic Detector Small Laser Peak State ------------ > --- POWER ------------ Ion Engine > --- PROPULSION ------- Aluminum Leg Aluminum Leg > --- UTILITY ---------- Small Storage Unit Improved Terrain Scanner > --- WEAPON ----------- Medium Laser Light Assault Rifle > --- INVENTORY -------- Light Ion Engine Light Treads Light Treads Seismic Detector Small Laser [Rating: 9] Favorites ----------- Power Ion Engine Engine Ion Engine Propulsion Aluminum Leg Treads Light Treads Leg Aluminum Leg Utility Improved Terrain Scanner Device Improved Terrain Scanner Storage Small Storage Unit Processor Transport Network Coupler Weapon Medium Laser Energy Gun Medium Laser Ballistic Gun Assault Rifle Build | -11 -10 -10 ------- Run | Yrd Mat Min Slots Evolved . | . . . Power . | . . . Propulsion . | . . . Utility . | . . . Weapon . | . . . Parts Attached 16 | 8 2 6 Power 2 | 1 . 1 Engine 2 | 1 . 1 Core . | . . . Reactor . | . . . Propulsion 4 | 2 . 2 Treads 2 | . . 2 Leg 2 | 2 . . Wheel . | . . . Hover . | . . . Flight . | . . . Utility 5 | 3 1 1 Device 2 | 2 . . Storage 2 | 1 1 . Processor 1 | . . 1 Hackware . | . . . Protection . | . . . Artifact . | . . . Weapon 5 | 2 1 2 Energy Gun 2 | 1 . 1 Energy Cannon . | . . . Ballistic Gun 3 | 1 1 1 Ballistic Cannon . | . . . Launcher . | . . . Special Weapon . | . . . Impact Weapon . | . . . Slashing Weapon . | . . . Piercing Weapon . | . . . Special Melee Weapon . | . . . Unidentified Prototypes . | . . . Parts Lost 5 | . . 5 Power 1 | . . 1 Propulsion 2 | . . 2 Utility 1 | . . 1 Weapon 1 | . . 1 Highest Loss Streak 5 | . . 5 To Critical Strikes . | . . . Average Slot Usage (%) 98 | . 100 93 Engine 14 | . 14 14 Leg 26 | . 28 23 Device 13 | . 14 12 Storage 14 | . 14 14 Energy Gun 13 | . 14 12 Ballistic Gun 14 | . 14 14 Peak Build Rating 9 | 9 9 9 Average Rating 7 | 6 9 8 On Entrance 6 | . 9 9 Naked Turns . | . . . Heaviest Build 20 | 14 20 20 Greatest Support 20 | 20 20 20 Greatest Overweight (x) . | . . . Average Overweight (x) . | . . . Largest Inventory Capacity 10 | 8 10 10 Average Capacity 8 | 7 8 10 Most Carried 9 | 5 9 9 Average Carried 6 | 3 6 8 Final Capacity 10 | 8 10 10 Final Carried 9 | 5 9 4 Class Distribution -------------------- 100% | Mutant Dominant Class ---------------- Mutant | -10/Materials Mutant | -10/Mines Resources | -11 -10 -10 ----------- Run | Yrd Mat Min Matter Collected 337 | 281 56 . Remotely . | . . . Salvage Created 203 | 80 82 41 Parts 15 | 7 8 . Haulers Intercepted 1 | . 1 . Recyclers Shooed 2 | . 2 . Parts Field Recycled . | . . . Retrieved Matter . | . . . Parts Self-Destructed . | . . . Prevented . | . . . Kills | -11 -10 -10 ------- Run | Yrd Mat Min Combat Hostiles Destroyed 6 | . 1 5 Guns 6 | . 1 5 Classes Destroyed 6 | 2 3 1 Worker 1 | 1 . . Tunneler 3 | 3 . . Hauler 1 | . 1 . Watcher 1 | . 1 . Swarmer 1 | . 1 . Assembled 5 | . . 5 Best Kill Streak 5 | 2 1 5 Combat Bots Only 5 | . 1 5 Max Kills in Single Turn 2 | 2 1 1 Gunslinging . | . . . Exploded . | . . . Melee . | . . . Uniques/NPCs Destroyed . | . . . Combat | -11 -10 -10 -------- Run | Yrd Mat Min Hostile Shots Fired 82 | . . 82 Missed 30 | . . 30 Damage Taken 864 | . . 864 Core 264 | . . 264 Absorbed by Shields . | . . . Core Remaining (%) 100 | 100 . . Volleys Fired 40 | 14 13 13 Largest 2 | 2 2 2 Hottest 70 | 70 70 70 Shots Fired 78 | 28 26 24 Gun 78 | 28 26 24 Cannon . | . . . Launcher . | . . . Special . | . . . Kinetic 41 | 14 13 14 Thermal 37 | 14 13 10 Explosive . | . . . Electromagnetic . | . . . Robot Hit Streak 12 | 12 5 6 Robot Miss Streak 6 | 2 6 3 Penetration Max . | . . . Secondary Targets 1 | . . 1 Max Gunslinging Chain 1 | . . 1 Shots Hit Robots 41 | 17 11 13 Core Hits 24 | 7 6 11 Critical Kills . | . . . Critical Parts Destroyed 1 | . 1 . Critical Strikes 1 | . 1 . Destroy 1 | . 1 . Melee Attacks . | . . . Impact . | . . . Slashing . | . . . Piercing . | . . . Sneak Attacks . | . . . Combat Hostiles . | . . . Follow-up Attacks . | . . . Damage Inflicted 616 | 231 161 224 Guns 555 | 200 131 224 Cannons . | . . . Explosions . | . . . Melee . | . . . Ramming 61 | 31 30 . Kinetic 283 | 74 46 163 Thermal 272 | 126 85 61 Explosive . | . . . Electromagnetic . | . . . Impact . | . . . Slashing . | . . . Piercing . | . . . Highest Corruption 8 | . . 8 Average Corruption 8 | . . 8 Corruption Purged . | . . . Corruption Blocked . | . . . Overload Shots . | . . . Overflow Damage . | . . . Projectiles . | . . . Explosions . | . . . Melee . | . . . Knockbacks . | . . . Impact . | . . . Kinetic . | . . . Secondary . | . . . Self-Inflicted Damage . | . . . Shots . | . . . Rammed . | . . . Targets Rammed 11 | 5 6 . Kicked 11 | 5 6 . Crushed . | . . . Highest Temperature 80 | 80 36 72 Average Temperature 26 | 31 14 31 Received Heat Transfer 40 | . . 40 Siege Activations . | . . . Robots Corrupted . | . . . Combat Hostiles . | . . . Parts Fried . | . . . Impact Corruptions . | . . . Robots Melted . | . . . Combat Hostiles . | . . . Parts Melted 1 | . 1 . Heat Transferred 814 | 370 259 185 Parts Sabotaged . | . . . Parts Stolen . | . . . Parts Stripped . | . . . Power Chain Reactions . | . . . Alert | -11 -10 -10 ------- Run | Yrd Mat Min Peak Influence 68 | 20 68 26 Initial 26 | . 13 26 Average 27 | 7 47 22 Maximum Alert Level . | . . . Low Security (%) 100 | 100 100 100 Level 1 . | . . . Level 2 . | . . . Level 3 . | . . . Level 4 . | . . . Level 5 . | . . . High Security . | . . . Max Security . | . . . Squads Dispatched . | . . . Investigation . | . . . Extermination . | . . . Reinforcement . | . . . Assault . | . . . Garrison . | . . . Intercept . | . . . Searches Triggered . | . . . Construction Impeded . | . . . Haulers Reinforced . | . . . Active Scanning Responses . | . . . Cargo Convoy Interrupts . | . . . Stealth | -11 -10 -10 --------- Run | Yrd Mat Min Distress Signals 1 | . . 1 Communications Jammed . | . . . Distress Signals . | . . . Times Spotted 20 | . 2 18 Peak Tracking Total 10 | . 1 10 Tactical Retreats 1 | . . 1 Traps | -11 -10 -10 ------- Run | Yrd Mat Min Traps Triggered . | . . . Indirectly . | . . . Trap Hack Attempts . | . . . Triggered . | . . . Disarmed . | . . . Reprogrammed . | . . . Reused . | . . . Traps Extracted . | . . . Installed . | . . . Triggered . | . . . Machines | -11 -10 -10 ---------- Run | Yrd Mat Min Machines Disabled . | . . . Max in Single Turn . | . . . Machines Repaired . | . . . Machines Dismantled . | . . . Machines Sabotaged . | . . . Overloaded Fab Kills . | . . . Hacking | -11 -10 -10 --------- Run | Yrd Mat Min Machines Accessed 1 | . 1 . Terminals 1 | . 1 . Fabricators . | . . . Repair Stations . | . . . Recycling Units . | . . . Scanalyzers . | . . . Garrison Access . | . . . Total Hacks 2 | . 2 . Successful 1 | . 1 . Failed 1 | . 1 . Catastrophic . | . . . Database Lockouts . | . . . Manual 2 | . 2 . Terminals 2 | . 2 . Fabricators . | . . . Repair Stations . | . . . Recycling Units . | . . . Scanalyzers . | . . . Garrison Access . | . . . Terminal Hacks 1 | . 1 . Locate Traps 1 | . 1 . Fabricator Hacks . | . . . Repair Station Hacks . | . . . Recycling Unit Hacks . | . . . Scanalyzer . | . . . Garrison Access Hacks . | . . . Unauthorized Hacks . | . . . Terminals . | . . . Fabricators . | . . . Repair Stations . | . . . Recycling Units . | . . . Scanalyzers . | . . . Garrison Access . | . . . Data Cores Recovered . | . . . Used . | . . . Hacking Detections . | . . . Full Trace Events . | . . . Feedback Events . | . . . Feedback Blocked . | . . . Robot Schematics Acquired . | . . . Robots Built . | . . . Authchips . | . . . Time . | . . . Total Robot Build Rating . | . . . Part Schematics Acquired . | . . . Parts Built . | . . . Authchips . | . . . Time . | . . . Total Part Build Rating . | . . . Parts Repaired . | . . . Time . | . . . Parts Recycled . | . . . Recycled Matter . | . . . Retrieved Matter . | . . . Retrieved Components . | . . . Parts Scanalyzed . | . . . Part Schematics Acquired . | . . . Parts Damaged . | . . . Bothacking | -11 -10 -10 ------------ Run | Yrd Mat Min Used RIF Installer . | . . . Robots Hacked . | . . . Non-combat . | . . . Combat . | . . . Robot Hacks Applied . | . . . Relay Couplers Released . | . . . Fabnet Peak Effective % . | . . . Robots Rewired . | . . . Allies Hacked . | . . . Hacks Repelled . | . . . Allies | -11 -10 -10 -------- Run | Yrd Mat Min Total Allies . | . . . Largest Group . | . . . Highest-Rated Group . | . . . Highest-Rated Ally . | . . . Total Orders . | . . . Ally Attacks . | . . . Total Damage . | . . . Kills . | . . . Allies Corrupted . | . . . Allies Melted . | . . . Intel | -11 -10 -10 ------- Run | Yrd Mat Min Robot Analysis Total . | . . . Derelict Logs Recovered . | . . . Drone Launches . | . . . Drone Recoveries . | . . . Exploration | -11 -10 -10 ------------- Run | Yrd Mat Min Turns Passed 705 | 261 308 136 Spaces Moved 460 | 171 212 77 Core 13 | 13 . . Treads . | . . . Legs 447 | 158 212 77 Wheels . | . . . Hover . | . . . Flight . | . . . Fastest Speed 50 | 50 120 120 Average Speed 118 | 114 120 120 Slowest Speed 120 | 120 120 120 Overloaded Moves . | . . . Propulsion Burnouts . | . . . Robots Hopped . | . . . Cave-ins Triggered . | . . . Exploration Rate (%) 15 | 8 19 19 Regions Visited 2 Branch Regions 1 Pre-discovered Areas . | . . . Known Exits Taken . | . . . Unknown Exits Taken 2 | 1 1 . Scrap Searched . | . . . Spaces Dug . | . . . Terrain Destroyed . | . . . Melee . | . . . Projectile . | . . . AOE . | . . . Terrain Rammed . | . . . Walls Destroyed . | . . . Machines Disabled . | . . . Actions | -11 -10 -10 --------- Run | Yrd Mat Min Total 543 | 209 238 96 Wait . | . . . Move 458 | 170 211 77 Hop . | . . . Pick Up 17 | 12 5 . Fast Attach . | . . . Attach 12 | 7 . 5 Detach . | . . . Swap 4 | 1 2 1 Drop 1 | . 1 . Fire 40 | 14 13 13 Melee . | . . . Ram . | . . . Kick 11 | 5 6 . Crush . | . . . Escape Stasis . | . . . Rewire . | . . . Trap . | . . . Miscellaneous . | . . . Route ------- -11/Scrapyard -10/Materials -10/Mines History --------- Turn | Location | Event 32 | -11/Scrapyard | Discovered new exit (range 15) 262 | -11/Scrapyard | Entered Materials 301 | -10/Materials | Build established: Mutant 426 | -10/Materials | Discovered new exit (range 7) 570 | -10/Materials | Entered Mines 625 | -10/Mines | Assembled infested the area 635 | -10/Mines | Met a Derelict bent on vengeance 697 | -10/Mines | Core integrity fell below 50% 704 | -10/Mines | Core integrity fell below 20% 706 | -10/Mines | Destroyed by as-27937 with Assembled Maul Last Messages --------------- 00684_ The unstable cave ceiling collapses. 00684_ as-56660 destroyed. 00688_ R-06 Scavenger collects Lgt. Ion Engine. 00689_ as-30695 sneak attacks. 00689_ R-06 Scavenger system corrupted by crushing effect. 00689_ as-83467 sneak attacks. 00689_ R-06 Scavenger system corrupted by crushing effect. 00689_ R-06 Scavenger knocked back. 00690_ R-06 Scavenger system terminally corrupted. 00695_ Assault Rifle destroyed. 00695_ Imp. Terrain Scanner destroyed. 00695_ System corrupted by crushing effect (+3). 00695_ System corrupted by crushing effect (+5). 00696_ as-27937 sneak attacks. 00696_ T-07 Excavator system corrupted by crushing effect. 00697_ T-07 Excavator system terminally corrupted. 00697_ Aluminum Leg destroyed. 00697_ as-47252 destroyed. 00699_ as-30695 destroyed. 00701_ Ion Engine destroyed. Map ----- +----------------------------------------------------+ | ?????????????????????????????????????????????????? | | ?????????????????????????????????????????????????? | | ?????????????????????????????????????????????????? | | ?????????????????????????????????????????????????? | | ?????????????????????????????????????????????????? | | ?????????????????????????????????????????????????? | | ?????????????????????????????????###?????????????? | | ????????????????????????????????? ##????????????? | | ?????????????????????????????????# #?????????????? | | ???????????????????????#?##????#?# #????????? ???? | | ??????????????????????????????#??# #???#?????????? | | ???????????????????? ??????#?????# #??????????#??? | | ????????????????????????#??#?????# #???????????#?? | | ????????????????##???????????????# #?????????????? | | ??????????????## ????#?????????# ########??????? | | ??????????????# a%???????#####?# | | ?????????????## ??#???## ### ########??????? | | ??????????????# % ?##### ##??????? ?? ?? | | ???????????? # # ## ####???????#?????? | | ??????????? a t ###???????????????? | | ????????????# % ###?????????????????? | | ??????????????##### %a% %##??#??#????????#????? | | ????????????????????# *a! ##???????????????????? | | ????????????????????## *% #?????#??#??????????? | | ?????????? ??????????## a%a #?????#?????????????? | | ????????????????????#?###@a ##??????????????????? | | ?????????? ????#?#???#??# ##??#???????????#????? | | ????????????????????????# ##???#?#??????????????? | | ??????????????????????#?# #?????????????????????? | | ??????????? ??????????#?# #???????#?#???????????? | | ???????????????????#????# #??????#???#??????????# | | ????????????????????????# #??????????#??#???????? | | ????????????????#?????#?# ###################???? | | ????????????????????#???# #???? | | ??????????????#?????????# #???? | | ????????????????#???????########## ######## ####? | | ??????????????????????????????#?## ##?????# ## | | ???????????????#?????????????????# #???#### | | ?????????????????????????????##??# ##### | | ????????????????????????????????? """ | | ?????????????????????????? ??????###### """ # | | ?????????????????????????"????????????# """ ## | | ????????????????????????????????#??#??# ##? | | ??????????????????????????????????????## ##? | | ???????????????????????????????????????## #?? | | ????????????????????????????????????????# #? | | ????????????????????????????"?????????#?# #? | | ??????????????????#???????????????#?????## ##? | | ??????????????????????????????????#?????### ##?? | | ??????????????????????????????????????????####???? | +----------------------------------------------------+ Best States ------------- Heat Dissipation 25 Energy Generation 10 Energy Capacity 250 Matter Stores 300 Matter Capacity 300 Sight Range 16 Terrain Scan Range 16 Terrain Scan Density 10 Evasion (%) 55 Item Schematics ----------------- None Robot Schematics ------------------ None Fabricated ------------ Nothing Alien Tech Used ----------------- None Achievements -------------- None Challenges ------------ None Game ------ Seed SiegeAntigravCannon Manual? 0 Play Time 00:10:51 Cumulative 3.1 hours Start 2025.03.14 @ 18:43:10 End 2025.03.14 @ 18:56:45 Sessions 1 Manual Loads 0 Difficulty Rogue Special Mode None Game No. 6 Rogue 6 Adventurer 0 Explorer 0 Win Type - Total 0 Types 0/0/0/0/0/0/0/0/0 Lore% 4 Gallery% 7 Achievement% 9 Wizard Run 0 Options --------- Layout 0 ASCII 0 Keyboard 0 Movement Numpad Keybinds 0 Fullscreen 1 Font 24/Smallcaps Map View 76x50 Zoom Use 0% Tactical HUD 1 Map Filters NONE Filters NONE Steam 1 RUN: ef1de1cb-cfdb-4d72-81fc-d5b0bc7ab49c